{"text_format":"1","workbook":"xlsx","n_sheets":2,"sheets":["ReferenceData","Ergebnis"],"not_rendered":{"charts":0,"images":0,"macros":1,"external_links":0,"defined_names":0,"comments":0,"pivot_tables":0},"unopened":[],"bounds":{"document_bytes":16777216,"sheet_cells":100000,"rows_first":2000,"rows_last":500,"rows_between":2000,"halvings":0,"cell_chars":16384,"cell_head_chars":4096},"cells_cut":0,"cells_raw":0,"read":"whole","date_system":"1900"}

{"sheet":"ReferenceData","index":0,"n_rows":19,"n_cols":2,"rows_kept":19,"cut":false,"hidden":false,"merged":[]}
["Feld","Wert"]
["Stadt","Düsseldorf"]
["Stadt","Hamburg"]
["Stadt","München"]
["Zimmerart","Einzelzimmer"]
["Zimmerart","Doppelzimmer"]
["Zimmerart","Suite"]
["Verpflegung","Ohne"]
["Verpflegung","Frühstück"]
["Verpflegung","Halbpension"]
["Verpflegung","Vollpension"]
["Verpflegung","All-Inclusive"]
["Saison","Hauptsaison"]
["Saison","Nebensaison"]
["Storno","ja"]
["Storno","nein"]
["Buchung","online"]
["Buchung","telefonisch"]
["Buchung","sonstige"]

{"sheet":"Ergebnis","index":1,"n_rows":541,"n_cols":6,"rows_kept":541,"cut":false,"hidden":false,"merged":[]}
[{"$f":"GetHeaderName(COLUMN())","v":"Stadt"},{"$f":"GetHeaderName(COLUMN())","v":"Zimmerart"},"Verpflegung","Saison","Storno","Buchung"]
[{"$f":"GetValue(ROW()-1,COLUMN())","v":"Düsseldorf"},{"$f":"GetValue(ROW()-1,COLUMN())","v":"Einzelzimmer"},"Ohne","Hauptsaison","ja","online"]
[{"$f":"GetValue(ROW()-1,COLUMN())","v":"Düsseldorf"},"Einzelzimmer","Ohne","Hauptsaison","ja","telefonisch"]
["Düsseldorf","Einzelzimmer","Ohne","Hauptsaison","ja","sonstige"]
["Düsseldorf","Einzelzimmer","Ohne","Hauptsaison","nein","online"]
["Düsseldorf","Einzelzimmer","Ohne","Hauptsaison","nein","telefonisch"]
["Düsseldorf","Einzelzimmer","Ohne","Hauptsaison","nein","sonstige"]
["Düsseldorf","Einzelzimmer","Ohne","Nebensaison","ja","online"]
["Düsseldorf","Einzelzimmer","Ohne","Nebensaison","ja","telefonisch"]
["Düsseldorf","Einzelzimmer","Ohne","Nebensaison","ja","sonstige"]
["Düsseldorf","Einzelzimmer","Ohne","Nebensaison","nein","online"]
["Düsseldorf","Einzelzimmer","Ohne","Nebensaison","nein","telefonisch"]
["Düsseldorf","Einzelzimmer","Ohne","Nebensaison","nein","sonstige"]
["Düsseldorf","Einzelzimmer","Frühstück","Hauptsaison","ja","online"]
["Düsseldorf","Einzelzimmer","Frühstück","Hauptsaison","ja","telefonisch"]
["Düsseldorf","Einzelzimmer","Frühstück","Hauptsaison","ja","sonstige"]
["Düsseldorf","Einzelzimmer","Frühstück","Hauptsaison","nein","online"]
["Düsseldorf","Einzelzimmer","Frühstück","Hauptsaison","nein","telefonisch"]
["Düsseldorf","Einzelzimmer","Frühstück","Hauptsaison","nein","sonstige"]
["Düsseldorf","Einzelzimmer","Frühstück","Nebensaison","ja",{"$f":"GetValue(ROW()-1,COLUMN())","v":"online"}]
["Düsseldorf","Einzelzimmer","Frühstück","Nebensaison","ja","telefonisch"]
["Düsseldorf","Einzelzimmer","Frühstück","Nebensaison","ja","sonstige"]
["Düsseldorf","Einzelzimmer","Frühstück","Nebensaison","nein","online"]
["Düsseldorf","Einzelzimmer","Frühstück","Nebensaison","nein","telefonisch"]
["Düsseldorf","Einzelzimmer","Frühstück","Nebensaison","nein","sonstige"]
["Düsseldorf","Einzelzimmer","Halbpension","Hauptsaison","ja","online"]
["Düsseldorf","Einzelzimmer","Halbpension","Hauptsaison","ja","telefonisch"]
["Düsseldorf","Einzelzimmer","Halbpension","Hauptsaison","ja","sonstige"]
["Düsseldorf","Einzelzimmer","Halbpension","Hauptsaison","nein","online"]
["Düsseldorf","Einzelzimmer","Halbpension","Hauptsaison","nein","telefonisch"]
["Düsseldorf","Einzelzimmer","Halbpension","Hauptsaison","nein","sonstige"]
["Düsseldorf","Einzelzimmer","Halbpension","Nebensaison","ja","online"]
["Düsseldorf","Einzelzimmer","Halbpension","Nebensaison","ja","telefonisch"]
["Düsseldorf","Einzelzimmer","Halbpension","Nebensaison","ja","sonstige"]
["Düsseldorf","Einzelzimmer","Halbpension","Nebensaison","nein","online"]
["Düsseldorf",{"$f":"GetValue(ROW()-1,COLUMN())","v":"Einzelzimmer"},"Halbpension","Nebensaison","nein","telefonisch"]
["Düsseldorf","Einzelzimmer","Halbpension","Nebensaison","nein","sonstige"]
["Düsseldorf","Einzelzimmer","Vollpension","Hauptsaison","ja","online"]
["Düsseldorf","Einzelzimmer","Vollpension","Hauptsaison","ja","telefonisch"]
["Düsseldorf","Einzelzimmer","Vollpension","Hauptsaison","ja","sonstige"]
["Düsseldorf","Einzelzimmer","Vollpension","Hauptsaison","nein","online"]
["Düsseldorf","Einzelzimmer","Vollpension","Hauptsaison","nein","telefonisch"]
["Düsseldorf","Einzelzimmer","Vollpension","Hauptsaison","nein","sonstige"]
["Düsseldorf","Einzelzimmer","Vollpension","Nebensaison","ja","online"]
["Düsseldorf","Einzelzimmer","Vollpension","Nebensaison","ja","telefonisch"]
["Düsseldorf","Einzelzimmer","Vollpension","Nebensaison","ja","sonstige"]
["Düsseldorf","Einzelzimmer","Vollpension","Nebensaison","nein","online"]
["Düsseldorf","Einzelzimmer","Vollpension","Nebensaison","nein","telefonisch"]
["Düsseldorf","Einzelzimmer","Vollpension","Nebensaison","nein","sonstige"]
["Düsseldorf","Einzelzimmer","All-Inclusive","Hauptsaison","ja","online"]
["Düsseldorf","Einzelzimmer","All-Inclusive","Hauptsaison","ja","telefonisch"]
["Düsseldorf",{"$f":"GetValue(ROW()-1,COLUMN())","v":"Einzelzimmer"},"All-Inclusive","Hauptsaison","ja","sonstige"]
["Düsseldorf","Einzelzimmer","All-Inclusive","Hauptsaison","nein","online"]
["Düsseldorf","Einzelzimmer","All-Inclusive","Hauptsaison","nein","telefonisch"]
["Düsseldorf","Einzelzimmer","All-Inclusive","Hauptsaison","nein","sonstige"]
["Düsseldorf","Einzelzimmer","All-Inclusive","Nebensaison","ja","online"]
["Düsseldorf","Einzelzimmer","All-Inclusive","Nebensaison","ja","telefonisch"]
["Düsseldorf","Einzelzimmer","All-Inclusive","Nebensaison","ja","sonstige"]
["Düsseldorf","Einzelzimmer","All-Inclusive","Nebensaison","nein","online"]
["Düsseldorf","Einzelzimmer","All-Inclusive","Nebensaison","nein","telefonisch"]
["Düsseldorf","Einzelzimmer","All-Inclusive","Nebensaison","nein","sonstige"]
["Düsseldorf","Doppelzimmer","Ohne","Hauptsaison","ja","online"]
["Düsseldorf","Doppelzimmer","Ohne","Hauptsaison","ja","telefonisch"]
["Düsseldorf","Doppelzimmer","Ohne","Hauptsaison","ja","sonstige"]
["Düsseldorf","Doppelzimmer","Ohne","Hauptsaison","nein","online"]
["Düsseldorf","Doppelzimmer","Ohne","Hauptsaison","nein","telefonisch"]
[{"$f":"GetValue(ROW()-1,COLUMN())","v":"Düsseldorf"},"Doppelzimmer","Ohne","Hauptsaison","nein","sonstige"]
["Düsseldorf","Doppelzimmer","Ohne","Nebensaison","ja","online"]
["Düsseldorf","Doppelzimmer","Ohne","Nebensaison","ja","telefonisch"]
["Düsseldorf","Doppelzimmer","Ohne","Nebensaison","ja","sonstige"]
["Düsseldorf","Doppelzimmer","Ohne","Nebensaison","nein","online"]
["Düsseldorf","Doppelzimmer","Ohne","Nebensaison","nein","telefonisch"]
["Düsseldorf","Doppelzimmer","Ohne","Nebensaison","nein","sonstige"]
["Düsseldorf","Doppelzimmer","Frühstück","Hauptsaison","ja","online"]
["Düsseldorf","Doppelzimmer","Frühstück","Hauptsaison","ja","telefonisch"]
["Düsseldorf","Doppelzimmer","Frühstück","Hauptsaison","ja","sonstige"]
["Düsseldorf","Doppelzimmer","Frühstück","Hauptsaison","nein","online"]
["Düsseldorf","Doppelzimmer","Frühstück","Hauptsaison","nein","telefonisch"]
["Düsseldorf","Doppelzimmer","Frühstück","Hauptsaison","nein","sonstige"]
["Düsseldorf","Doppelzimmer","Frühstück","Nebensaison","ja","online"]
["Düsseldorf","Doppelzimmer","Frühstück","Nebensaison","ja","telefonisch"]
["Düsseldorf","Doppelzimmer","Frühstück","Nebensaison","ja","sonstige"]
["Düsseldorf","Doppelzimmer","Frühstück","Nebensaison","nein","online"]
["Düsseldorf","Doppelzimmer","Frühstück","Nebensaison","nein",{"$f":"GetValue(ROW()-1,COLUMN())","v":"telefonisch"}]
["Düsseldorf","Doppelzimmer","Frühstück","Nebensaison","nein","sonstige"]
["Düsseldorf","Doppelzimmer","Halbpension","Hauptsaison","ja","online"]
["Düsseldorf","Doppelzimmer","Halbpension","Hauptsaison","ja","telefonisch"]
["Düsseldorf","Doppelzimmer","Halbpension","Hauptsaison","ja","sonstige"]
["Düsseldorf","Doppelzimmer","Halbpension","Hauptsaison","nein","online"]
["Düsseldorf","Doppelzimmer","Halbpension","Hauptsaison","nein","telefonisch"]
["Düsseldorf","Doppelzimmer","Halbpension","Hauptsaison","nein","sonstige"]
["Düsseldorf","Doppelzimmer","Halbpension","Nebensaison","ja","online"]
["Düsseldorf","Doppelzimmer","Halbpension","Nebensaison","ja","telefonisch"]
["Düsseldorf","Doppelzimmer","Halbpension","Nebensaison","ja","sonstige"]
["Düsseldorf","Doppelzimmer","Halbpension","Nebensaison","nein","online"]
["Düsseldorf","Doppelzimmer","Halbpension","Nebensaison","nein","telefonisch"]
["Düsseldorf","Doppelzimmer","Halbpension","Nebensaison","nein","sonstige"]
["Düsseldorf","Doppelzimmer","Vollpension","Hauptsaison","ja","online"]
["Düsseldorf","Doppelzimmer","Vollpension","Hauptsaison","ja","telefonisch"]
["Düsseldorf",{"$f":"GetValue(ROW()-1,COLUMN())","v":"Doppelzimmer"},"Vollpension","Hauptsaison","ja","sonstige"]
["Düsseldorf","Doppelzimmer","Vollpension","Hauptsaison","nein","online"]
["Düsseldorf","Doppelzimmer","Vollpension","Hauptsaison","nein","telefonisch"]
["Düsseldorf","Doppelzimmer","Vollpension","Hauptsaison","nein","sonstige"]
["Düsseldorf","Doppelzimmer","Vollpension","Nebensaison","ja","online"]
["Düsseldorf","Doppelzimmer","Vollpension","Nebensaison","ja","telefonisch"]
["Düsseldorf","Doppelzimmer","Vollpension","Nebensaison","ja","sonstige"]
["Düsseldorf","Doppelzimmer","Vollpension","Nebensaison","nein","online"]
["Düsseldorf","Doppelzimmer","Vollpension","Nebensaison","nein","telefonisch"]
["Düsseldorf","Doppelzimmer","Vollpension","Nebensaison","nein","sonstige"]
["Düsseldorf","Doppelzimmer","All-Inclusive","Hauptsaison","ja","online"]
["Düsseldorf","Doppelzimmer","All-Inclusive","Hauptsaison","ja","telefonisch"]
["Düsseldorf","Doppelzimmer","All-Inclusive","Hauptsaison","ja","sonstige"]
["Düsseldorf","Doppelzimmer","All-Inclusive","Hauptsaison","nein","online"]
["Düsseldorf","Doppelzimmer","All-Inclusive","Hauptsaison","nein","telefonisch"]
["Düsseldorf","Doppelzimmer","All-Inclusive","Hauptsaison","nein","sonstige"]
["Düsseldorf",{"$f":"GetValue(ROW()-1,COLUMN())","v":"Doppelzimmer"},"All-Inclusive","Nebensaison","ja","online"]
["Düsseldorf","Doppelzimmer","All-Inclusive","Nebensaison","ja","telefonisch"]
["Düsseldorf","Doppelzimmer","All-Inclusive","Nebensaison","ja","sonstige"]
["Düsseldorf","Doppelzimmer","All-Inclusive","Nebensaison","nein","online"]
["Düsseldorf","Doppelzimmer","All-Inclusive","Nebensaison","nein","telefonisch"]
["Düsseldorf","Doppelzimmer","All-Inclusive","Nebensaison","nein","sonstige"]
["Düsseldorf","Suite","Ohne","Hauptsaison","ja","online"]
["Düsseldorf","Suite","Ohne","Hauptsaison","ja","telefonisch"]
["Düsseldorf","Suite","Ohne","Hauptsaison","ja","sonstige"]
["Düsseldorf","Suite","Ohne","Hauptsaison","nein","online"]
["Düsseldorf","Suite","Ohne","Hauptsaison","nein","telefonisch"]
["Düsseldorf","Suite","Ohne","Hauptsaison","nein","sonstige"]
["Düsseldorf","Suite","Ohne","Nebensaison","ja","online"]
["Düsseldorf","Suite","Ohne","Nebensaison","ja","telefonisch"]
["Düsseldorf","Suite","Ohne","Nebensaison","ja","sonstige"]
[{"$f":"GetValue(ROW()-1,COLUMN())","v":"Düsseldorf"},"Suite","Ohne","Nebensaison","nein","online"]
["Düsseldorf","Suite","Ohne","Nebensaison","nein","telefonisch"]
["Düsseldorf","Suite","Ohne","Nebensaison","nein","sonstige"]
["Düsseldorf","Suite","Frühstück","Hauptsaison","ja","online"]
["Düsseldorf","Suite","Frühstück","Hauptsaison","ja","telefonisch"]
["Düsseldorf","Suite","Frühstück","Hauptsaison","ja","sonstige"]
["Düsseldorf","Suite","Frühstück","Hauptsaison","nein","online"]
["Düsseldorf","Suite","Frühstück","Hauptsaison","nein","telefonisch"]
["Düsseldorf","Suite","Frühstück","Hauptsaison","nein","sonstige"]
["Düsseldorf","Suite","Frühstück","Nebensaison","ja","online"]
["Düsseldorf","Suite","Frühstück","Nebensaison","ja","telefonisch"]
["Düsseldorf","Suite","Frühstück","Nebensaison","ja","sonstige"]
["Düsseldorf","Suite","Frühstück","Nebensaison","nein","online"]
["Düsseldorf","Suite","Frühstück","Nebensaison","nein","telefonisch"]
["Düsseldorf","Suite","Frühstück","Nebensaison","nein","sonstige"]
["Düsseldorf","Suite","Halbpension","Hauptsaison","ja","online"]
["Düsseldorf","Suite","Halbpension","Hauptsaison","ja","telefonisch"]
["Düsseldorf","Suite","Halbpension","Hauptsaison","ja",{"$f":"GetValue(ROW()-1,COLUMN())","v":"sonstige"}]
["Düsseldorf","Suite","Halbpension","Hauptsaison","nein","online"]
["Düsseldorf","Suite","Halbpension","Hauptsaison","nein","telefonisch"]
["Düsseldorf","Suite","Halbpension","Hauptsaison","nein","sonstige"]
["Düsseldorf","Suite","Halbpension","Nebensaison","ja","online"]
["Düsseldorf","Suite","Halbpension","Nebensaison","ja","telefonisch"]
["Düsseldorf","Suite","Halbpension","Nebensaison","ja","sonstige"]
["Düsseldorf","Suite","Halbpension","Nebensaison","nein","online"]
["Düsseldorf","Suite","Halbpension","Nebensaison","nein","telefonisch"]
["Düsseldorf","Suite","Halbpension","Nebensaison","nein","sonstige"]
["Düsseldorf","Suite","Vollpension","Hauptsaison","ja","online"]
["Düsseldorf","Suite","Vollpension","Hauptsaison","ja","telefonisch"]
["Düsseldorf","Suite","Vollpension","Hauptsaison","ja","sonstige"]
["Düsseldorf","Suite","Vollpension","Hauptsaison","nein","online"]
["Düsseldorf","Suite","Vollpension","Hauptsaison","nein","telefonisch"]
["Düsseldorf","Suite","Vollpension","Hauptsaison","nein","sonstige"]
["Düsseldorf",{"$f":"GetValue(ROW()-1,COLUMN())","v":"Suite"},"Vollpension","Nebensaison","ja","online"]
["Düsseldorf","Suite","Vollpension","Nebensaison","ja","telefonisch"]
["Düsseldorf","Suite","Vollpension","Nebensaison","ja","sonstige"]
["Düsseldorf","Suite","Vollpension","Nebensaison","nein","online"]
["Düsseldorf","Suite","Vollpension","Nebensaison","nein","telefonisch"]
["Düsseldorf","Suite","Vollpension","Nebensaison","nein","sonstige"]
["Düsseldorf","Suite","All-Inclusive","Hauptsaison","ja","online"]
["Düsseldorf","Suite","All-Inclusive","Hauptsaison","ja","telefonisch"]
["Düsseldorf","Suite","All-Inclusive","Hauptsaison","ja","sonstige"]
["Düsseldorf","Suite","All-Inclusive","Hauptsaison","nein","online"]
["Düsseldorf","Suite","All-Inclusive","Hauptsaison","nein","telefonisch"]
["Düsseldorf","Suite","All-Inclusive","Hauptsaison","nein","sonstige"]
["Düsseldorf","Suite","All-Inclusive","Nebensaison","ja","online"]
["Düsseldorf","Suite","All-Inclusive","Nebensaison","ja","telefonisch"]
["Düsseldorf","Suite","All-Inclusive","Nebensaison","ja","sonstige"]
["Düsseldorf","Suite","All-Inclusive","Nebensaison","nein","online"]
["Düsseldorf",{"$f":"GetValue(ROW()-1,COLUMN())","v":"Suite"},"All-Inclusive","Nebensaison","nein","telefonisch"]
["Düsseldorf","Suite","All-Inclusive","Nebensaison","nein","sonstige"]
["Hamburg","Einzelzimmer","Ohne","Hauptsaison","ja","online"]
["Hamburg","Einzelzimmer","Ohne","Hauptsaison","ja","telefonisch"]
["Hamburg","Einzelzimmer","Ohne","Hauptsaison","ja","sonstige"]
["Hamburg","Einzelzimmer","Ohne","Hauptsaison","nein","online"]
["Hamburg","Einzelzimmer","Ohne","Hauptsaison","nein","telefonisch"]
["Hamburg","Einzelzimmer","Ohne","Hauptsaison","nein","sonstige"]
["Hamburg","Einzelzimmer","Ohne","Nebensaison","ja","online"]
["Hamburg","Einzelzimmer","Ohne","Nebensaison","ja","telefonisch"]
["Hamburg","Einzelzimmer","Ohne","Nebensaison","ja","sonstige"]
["Hamburg","Einzelzimmer","Ohne","Nebensaison","nein","online"]
["Hamburg","Einzelzimmer","Ohne","Nebensaison","nein","telefonisch"]
["Hamburg","Einzelzimmer","Ohne","Nebensaison","nein","sonstige"]
["Hamburg","Einzelzimmer","Frühstück","Hauptsaison","ja","online"]
[{"$f":"GetValue(ROW()-1,COLUMN())","v":"Hamburg"},"Einzelzimmer","Frühstück","Hauptsaison","ja","telefonisch"]
["Hamburg","Einzelzimmer","Frühstück","Hauptsaison","ja","sonstige"]
["Hamburg","Einzelzimmer","Frühstück","Hauptsaison","nein","online"]
["Hamburg","Einzelzimmer","Frühstück","Hauptsaison","nein","telefonisch"]
["Hamburg","Einzelzimmer","Frühstück","Hauptsaison","nein","sonstige"]
["Hamburg","Einzelzimmer","Frühstück","Nebensaison","ja","online"]
["Hamburg","Einzelzimmer","Frühstück","Nebensaison","ja","telefonisch"]
["Hamburg","Einzelzimmer","Frühstück","Nebensaison","ja","sonstige"]
["Hamburg","Einzelzimmer","Frühstück","Nebensaison","nein","online"]
["Hamburg","Einzelzimmer","Frühstück","Nebensaison","nein","telefonisch"]
["Hamburg","Einzelzimmer","Frühstück","Nebensaison","nein","sonstige"]
["Hamburg","Einzelzimmer","Halbpension","Hauptsaison","ja","online"]
["Hamburg","Einzelzimmer","Halbpension","Hauptsaison","ja","telefonisch"]
["Hamburg","Einzelzimmer","Halbpension","Hauptsaison","ja","sonstige"]
["Hamburg","Einzelzimmer","Halbpension","Hauptsaison","nein","online"]
["Hamburg","Einzelzimmer","Halbpension","Hauptsaison","nein","telefonisch"]
["Hamburg","Einzelzimmer","Halbpension","Hauptsaison","nein","sonstige"]
["Hamburg","Einzelzimmer","Halbpension","Nebensaison","ja",{"$f":"GetValue(ROW()-1,COLUMN())","v":"online"}]
["Hamburg","Einzelzimmer","Halbpension","Nebensaison","ja","telefonisch"]
["Hamburg","Einzelzimmer","Halbpension","Nebensaison","ja","sonstige"]
["Hamburg","Einzelzimmer","Halbpension","Nebensaison","nein","online"]
["Hamburg","Einzelzimmer","Halbpension","Nebensaison","nein","telefonisch"]
["Hamburg","Einzelzimmer","Halbpension","Nebensaison","nein","sonstige"]
["Hamburg","Einzelzimmer","Vollpension","Hauptsaison","ja","online"]
["Hamburg","Einzelzimmer","Vollpension","Hauptsaison","ja","telefonisch"]
["Hamburg","Einzelzimmer","Vollpension","Hauptsaison","ja","sonstige"]
["Hamburg","Einzelzimmer","Vollpension","Hauptsaison","nein","online"]
["Hamburg","Einzelzimmer","Vollpension","Hauptsaison","nein","telefonisch"]
["Hamburg","Einzelzimmer","Vollpension","Hauptsaison","nein","sonstige"]
["Hamburg","Einzelzimmer","Vollpension","Nebensaison","ja","online"]
["Hamburg","Einzelzimmer","Vollpension","Nebensaison","ja","telefonisch"]
["Hamburg","Einzelzimmer","Vollpension","Nebensaison","ja","sonstige"]
["Hamburg","Einzelzimmer","Vollpension","Nebensaison","nein","online"]
["Hamburg",{"$f":"GetValue(ROW()-1,COLUMN())","v":"Einzelzimmer"},"Vollpension","Nebensaison","nein","telefonisch"]
["Hamburg","Einzelzimmer","Vollpension","Nebensaison","nein","sonstige"]
["Hamburg","Einzelzimmer","All-Inclusive","Hauptsaison","ja","online"]
["Hamburg","Einzelzimmer","All-Inclusive","Hauptsaison","ja","telefonisch"]
["Hamburg","Einzelzimmer","All-Inclusive","Hauptsaison","ja","sonstige"]
["Hamburg","Einzelzimmer","All-Inclusive","Hauptsaison","nein","online"]
["Hamburg","Einzelzimmer","All-Inclusive","Hauptsaison","nein","telefonisch"]
["Hamburg","Einzelzimmer","All-Inclusive","Hauptsaison","nein","sonstige"]
["Hamburg","Einzelzimmer","All-Inclusive","Nebensaison","ja","online"]
["Hamburg","Einzelzimmer","All-Inclusive","Nebensaison","ja","telefonisch"]
["Hamburg","Einzelzimmer","All-Inclusive","Nebensaison","ja","sonstige"]
["Hamburg","Einzelzimmer","All-Inclusive","Nebensaison","nein","online"]
["Hamburg","Einzelzimmer","All-Inclusive","Nebensaison","nein","telefonisch"]
["Hamburg","Einzelzimmer","All-Inclusive","Nebensaison","nein","sonstige"]
["Hamburg","Doppelzimmer","Ohne","Hauptsaison","ja","online"]
["Hamburg","Doppelzimmer","Ohne","Hauptsaison","ja","telefonisch"]
["Hamburg",{"$f":"GetValue(ROW()-1,COLUMN())","v":"Doppelzimmer"},"Ohne","Hauptsaison","ja","sonstige"]
["Hamburg","Doppelzimmer","Ohne","Hauptsaison","nein","online"]
["Hamburg","Doppelzimmer","Ohne","Hauptsaison","nein","telefonisch"]
["Hamburg","Doppelzimmer","Ohne","Hauptsaison","nein","sonstige"]
["Hamburg","Doppelzimmer","Ohne","Nebensaison","ja","online"]
["Hamburg","Doppelzimmer","Ohne","Nebensaison","ja","telefonisch"]
["Hamburg","Doppelzimmer","Ohne","Nebensaison","ja","sonstige"]
["Hamburg","Doppelzimmer","Ohne","Nebensaison","nein","online"]
["Hamburg","Doppelzimmer","Ohne","Nebensaison","nein","telefonisch"]
["Hamburg","Doppelzimmer","Ohne","Nebensaison","nein","sonstige"]
["Hamburg","Doppelzimmer","Frühstück","Hauptsaison","ja","online"]
["Hamburg","Doppelzimmer","Frühstück","Hauptsaison","ja","telefonisch"]
["Hamburg","Doppelzimmer","Frühstück","Hauptsaison","ja","sonstige"]
["Hamburg","Doppelzimmer","Frühstück","Hauptsaison","nein","online"]
["Hamburg","Doppelzimmer","Frühstück","Hauptsaison","nein","telefonisch"]
[{"$f":"GetValue(ROW()-1,COLUMN())","v":"Hamburg"},"Doppelzimmer","Frühstück","Hauptsaison","nein","sonstige"]
["Hamburg","Doppelzimmer","Frühstück","Nebensaison","ja","online"]
["Hamburg","Doppelzimmer","Frühstück","Nebensaison","ja","telefonisch"]
["Hamburg","Doppelzimmer","Frühstück","Nebensaison","ja","sonstige"]
["Hamburg","Doppelzimmer","Frühstück","Nebensaison","nein","online"]
["Hamburg","Doppelzimmer","Frühstück","Nebensaison","nein","telefonisch"]
["Hamburg","Doppelzimmer","Frühstück","Nebensaison","nein","sonstige"]
["Hamburg","Doppelzimmer","Halbpension","Hauptsaison","ja","online"]
["Hamburg","Doppelzimmer","Halbpension","Hauptsaison","ja","telefonisch"]
["Hamburg","Doppelzimmer","Halbpension","Hauptsaison","ja","sonstige"]
["Hamburg","Doppelzimmer","Halbpension","Hauptsaison","nein","online"]
["Hamburg","Doppelzimmer","Halbpension","Hauptsaison","nein","telefonisch"]
["Hamburg","Doppelzimmer","Halbpension","Hauptsaison","nein","sonstige"]
["Hamburg","Doppelzimmer","Halbpension","Nebensaison","ja","online"]
["Hamburg","Doppelzimmer","Halbpension","Nebensaison","ja","telefonisch"]
["Hamburg","Doppelzimmer","Halbpension","Nebensaison","ja","sonstige"]
["Hamburg","Doppelzimmer","Halbpension","Nebensaison","nein","online"]
["Hamburg","Doppelzimmer","Halbpension","Nebensaison","nein",{"$f":"GetValue(ROW()-1,COLUMN())","v":"telefonisch"}]
["Hamburg","Doppelzimmer","Halbpension","Nebensaison","nein","sonstige"]
["Hamburg","Doppelzimmer","Vollpension","Hauptsaison","ja","online"]
["Hamburg","Doppelzimmer","Vollpension","Hauptsaison","ja","telefonisch"]
["Hamburg","Doppelzimmer","Vollpension","Hauptsaison","ja","sonstige"]
["Hamburg","Doppelzimmer","Vollpension","Hauptsaison","nein","online"]
["Hamburg","Doppelzimmer","Vollpension","Hauptsaison","nein","telefonisch"]
["Hamburg","Doppelzimmer","Vollpension","Hauptsaison","nein","sonstige"]
["Hamburg","Doppelzimmer","Vollpension","Nebensaison","ja","online"]
["Hamburg","Doppelzimmer","Vollpension","Nebensaison","ja","telefonisch"]
["Hamburg","Doppelzimmer","Vollpension","Nebensaison","ja","sonstige"]
["Hamburg","Doppelzimmer","Vollpension","Nebensaison","nein","online"]
["Hamburg","Doppelzimmer","Vollpension","Nebensaison","nein","telefonisch"]
["Hamburg","Doppelzimmer","Vollpension","Nebensaison","nein","sonstige"]
["Hamburg","Doppelzimmer","All-Inclusive","Hauptsaison","ja","online"]
["Hamburg","Doppelzimmer","All-Inclusive","Hauptsaison","ja","telefonisch"]
["Hamburg",{"$f":"GetValue(ROW()-1,COLUMN())","v":"Doppelzimmer"},"All-Inclusive","Hauptsaison","ja","sonstige"]
["Hamburg","Doppelzimmer","All-Inclusive","Hauptsaison","nein","online"]
["Hamburg","Doppelzimmer","All-Inclusive","Hauptsaison","nein","telefonisch"]
["Hamburg","Doppelzimmer","All-Inclusive","Hauptsaison","nein","sonstige"]
["Hamburg","Doppelzimmer","All-Inclusive","Nebensaison","ja","online"]
["Hamburg","Doppelzimmer","All-Inclusive","Nebensaison","ja","telefonisch"]
["Hamburg","Doppelzimmer","All-Inclusive","Nebensaison","ja","sonstige"]
["Hamburg","Doppelzimmer","All-Inclusive","Nebensaison","nein","online"]
["Hamburg","Doppelzimmer","All-Inclusive","Nebensaison","nein","telefonisch"]
["Hamburg","Doppelzimmer","All-Inclusive","Nebensaison","nein","sonstige"]
["Hamburg","Suite","Ohne","Hauptsaison","ja","online"]
["Hamburg","Suite","Ohne","Hauptsaison","ja","telefonisch"]
["Hamburg","Suite","Ohne","Hauptsaison","ja","sonstige"]
["Hamburg","Suite","Ohne","Hauptsaison","nein","online"]
["Hamburg","Suite","Ohne","Hauptsaison","nein","telefonisch"]
["Hamburg","Suite","Ohne","Hauptsaison","nein","sonstige"]
["Hamburg",{"$f":"GetValue(ROW()-1,COLUMN())","v":"Suite"},"Ohne","Nebensaison","ja","online"]
["Hamburg","Suite","Ohne","Nebensaison","ja","telefonisch"]
["Hamburg","Suite","Ohne","Nebensaison","ja","sonstige"]
["Hamburg","Suite","Ohne","Nebensaison","nein","online"]
["Hamburg","Suite","Ohne","Nebensaison","nein","telefonisch"]
["Hamburg","Suite","Ohne","Nebensaison","nein","sonstige"]
["Hamburg","Suite","Frühstück","Hauptsaison","ja","online"]
["Hamburg","Suite","Frühstück","Hauptsaison","ja","telefonisch"]
["Hamburg","Suite","Frühstück","Hauptsaison","ja","sonstige"]
["Hamburg","Suite","Frühstück","Hauptsaison","nein","online"]
["Hamburg","Suite","Frühstück","Hauptsaison","nein","telefonisch"]
["Hamburg","Suite","Frühstück","Hauptsaison","nein","sonstige"]
["Hamburg","Suite","Frühstück","Nebensaison","ja","online"]
["Hamburg","Suite","Frühstück","Nebensaison","ja","telefonisch"]
["Hamburg","Suite","Frühstück","Nebensaison","ja","sonstige"]
[{"$f":"GetValue(ROW()-1,COLUMN())","v":"Hamburg"},"Suite","Frühstück","Nebensaison","nein","online"]
["Hamburg","Suite","Frühstück","Nebensaison","nein","telefonisch"]
["Hamburg","Suite","Frühstück","Nebensaison","nein","sonstige"]
["Hamburg","Suite","Halbpension","Hauptsaison","ja","online"]
["Hamburg","Suite","Halbpension","Hauptsaison","ja","telefonisch"]
["Hamburg","Suite","Halbpension","Hauptsaison","ja","sonstige"]
["Hamburg","Suite","Halbpension","Hauptsaison","nein","online"]
["Hamburg","Suite","Halbpension","Hauptsaison","nein","telefonisch"]
["Hamburg","Suite","Halbpension","Hauptsaison","nein","sonstige"]
["Hamburg","Suite","Halbpension","Nebensaison","ja","online"]
["Hamburg","Suite","Halbpension","Nebensaison","ja","telefonisch"]
["Hamburg","Suite","Halbpension","Nebensaison","ja","sonstige"]
["Hamburg","Suite","Halbpension","Nebensaison","nein","online"]
["Hamburg","Suite","Halbpension","Nebensaison","nein","telefonisch"]
["Hamburg","Suite","Halbpension","Nebensaison","nein","sonstige"]
["Hamburg","Suite","Vollpension","Hauptsaison","ja","online"]
["Hamburg","Suite","Vollpension","Hauptsaison","ja","telefonisch"]
["Hamburg","Suite","Vollpension","Hauptsaison","ja",{"$f":"GetValue(ROW()-1,COLUMN())","v":"sonstige"}]
["Hamburg","Suite","Vollpension","Hauptsaison","nein","online"]
["Hamburg","Suite","Vollpension","Hauptsaison","nein","telefonisch"]
["Hamburg","Suite","Vollpension","Hauptsaison","nein","sonstige"]
["Hamburg","Suite","Vollpension","Nebensaison","ja","online"]
["Hamburg","Suite","Vollpension","Nebensaison","ja","telefonisch"]
["Hamburg","Suite","Vollpension","Nebensaison","ja","sonstige"]
["Hamburg","Suite","Vollpension","Nebensaison","nein","online"]
["Hamburg","Suite","Vollpension","Nebensaison","nein","telefonisch"]
["Hamburg","Suite","Vollpension","Nebensaison","nein","sonstige"]
["Hamburg","Suite","All-Inclusive","Hauptsaison","ja","online"]
["Hamburg","Suite","All-Inclusive","Hauptsaison","ja","telefonisch"]
["Hamburg","Suite","All-Inclusive","Hauptsaison","ja","sonstige"]
["Hamburg","Suite","All-Inclusive","Hauptsaison","nein","online"]
["Hamburg","Suite","All-Inclusive","Hauptsaison","nein","telefonisch"]
["Hamburg","Suite","All-Inclusive","Hauptsaison","nein","sonstige"]
["Hamburg",{"$f":"GetValue(ROW()-1,COLUMN())","v":"Suite"},"All-Inclusive","Nebensaison","ja","online"]
["Hamburg","Suite","All-Inclusive","Nebensaison","ja","telefonisch"]
["Hamburg","Suite","All-Inclusive","Nebensaison","ja","sonstige"]
["Hamburg","Suite","All-Inclusive","Nebensaison","nein","online"]
["Hamburg","Suite","All-Inclusive","Nebensaison","nein","telefonisch"]
["Hamburg","Suite","All-Inclusive","Nebensaison","nein","sonstige"]
["München","Einzelzimmer","Ohne","Hauptsaison","ja","online"]
["München","Einzelzimmer","Ohne","Hauptsaison","ja","telefonisch"]
["München","Einzelzimmer","Ohne","Hauptsaison","ja","sonstige"]
["München","Einzelzimmer","Ohne","Hauptsaison","nein","online"]
["München","Einzelzimmer","Ohne","Hauptsaison","nein","telefonisch"]
["München","Einzelzimmer","Ohne","Hauptsaison","nein","sonstige"]
["München","Einzelzimmer","Ohne","Nebensaison","ja","online"]
["München","Einzelzimmer","Ohne","Nebensaison","ja","telefonisch"]
["München","Einzelzimmer","Ohne","Nebensaison","ja","sonstige"]
["München","Einzelzimmer","Ohne","Nebensaison","nein","online"]
["München",{"$f":"GetValue(ROW()-1,COLUMN())","v":"Einzelzimmer"},"Ohne","Nebensaison","nein","telefonisch"]
["München","Einzelzimmer","Ohne","Nebensaison","nein","sonstige"]
["München","Einzelzimmer","Frühstück","Hauptsaison","ja","online"]
["München","Einzelzimmer","Frühstück","Hauptsaison","ja","telefonisch"]
["München","Einzelzimmer","Frühstück","Hauptsaison","ja","sonstige"]
["München","Einzelzimmer","Frühstück","Hauptsaison","nein","online"]
["München","Einzelzimmer","Frühstück","Hauptsaison","nein","telefonisch"]
["München","Einzelzimmer","Frühstück","Hauptsaison","nein","sonstige"]
["München","Einzelzimmer","Frühstück","Nebensaison","ja","online"]
["München","Einzelzimmer","Frühstück","Nebensaison","ja","telefonisch"]
["München","Einzelzimmer","Frühstück","Nebensaison","ja","sonstige"]
["München","Einzelzimmer","Frühstück","Nebensaison","nein","online"]
["München","Einzelzimmer","Frühstück","Nebensaison","nein","telefonisch"]
["München","Einzelzimmer","Frühstück","Nebensaison","nein","sonstige"]
["München","Einzelzimmer","Halbpension","Hauptsaison","ja","online"]
[{"$f":"GetValue(ROW()-1,COLUMN())","v":"München"},"Einzelzimmer","Halbpension","Hauptsaison","ja","telefonisch"]
["München","Einzelzimmer","Halbpension","Hauptsaison","ja","sonstige"]
["München","Einzelzimmer","Halbpension","Hauptsaison","nein","online"]
["München","Einzelzimmer","Halbpension","Hauptsaison","nein","telefonisch"]
["München","Einzelzimmer","Halbpension","Hauptsaison","nein","sonstige"]
["München","Einzelzimmer","Halbpension","Nebensaison","ja","online"]
["München","Einzelzimmer","Halbpension","Nebensaison","ja","telefonisch"]
["München","Einzelzimmer","Halbpension","Nebensaison","ja","sonstige"]
["München","Einzelzimmer","Halbpension","Nebensaison","nein","online"]
["München","Einzelzimmer","Halbpension","Nebensaison","nein","telefonisch"]
["München","Einzelzimmer","Halbpension","Nebensaison","nein","sonstige"]
["München","Einzelzimmer","Vollpension","Hauptsaison","ja","online"]
["München","Einzelzimmer","Vollpension","Hauptsaison","ja","telefonisch"]
["München","Einzelzimmer","Vollpension","Hauptsaison","ja","sonstige"]
["München","Einzelzimmer","Vollpension","Hauptsaison","nein","online"]
["München","Einzelzimmer","Vollpension","Hauptsaison","nein","telefonisch"]
["München","Einzelzimmer","Vollpension","Hauptsaison","nein","sonstige"]
["München","Einzelzimmer","Vollpension","Nebensaison","ja",{"$f":"GetValue(ROW()-1,COLUMN())","v":"online"}]
["München","Einzelzimmer","Vollpension","Nebensaison","ja","telefonisch"]
["München","Einzelzimmer","Vollpension","Nebensaison","ja","sonstige"]
["München","Einzelzimmer","Vollpension","Nebensaison","nein","online"]
["München","Einzelzimmer","Vollpension","Nebensaison","nein","telefonisch"]
["München","Einzelzimmer","Vollpension","Nebensaison","nein","sonstige"]
["München","Einzelzimmer","All-Inclusive","Hauptsaison","ja","online"]
["München","Einzelzimmer","All-Inclusive","Hauptsaison","ja","telefonisch"]
["München","Einzelzimmer","All-Inclusive","Hauptsaison","ja","sonstige"]
["München","Einzelzimmer","All-Inclusive","Hauptsaison","nein","online"]
["München","Einzelzimmer","All-Inclusive","Hauptsaison","nein","telefonisch"]
["München","Einzelzimmer","All-Inclusive","Hauptsaison","nein","sonstige"]
["München","Einzelzimmer","All-Inclusive","Nebensaison","ja","online"]
["München","Einzelzimmer","All-Inclusive","Nebensaison","ja","telefonisch"]
["München","Einzelzimmer","All-Inclusive","Nebensaison","ja","sonstige"]
["München","Einzelzimmer","All-Inclusive","Nebensaison","nein","online"]
["München",{"$f":"GetValue(ROW()-1,COLUMN())","v":"Einzelzimmer"},"All-Inclusive","Nebensaison","nein","telefonisch"]
["München","Einzelzimmer","All-Inclusive","Nebensaison","nein","sonstige"]
["München","Doppelzimmer","Ohne","Hauptsaison","ja","online"]
["München","Doppelzimmer","Ohne","Hauptsaison","ja","telefonisch"]
["München","Doppelzimmer","Ohne","Hauptsaison","ja","sonstige"]
["München","Doppelzimmer","Ohne","Hauptsaison","nein","online"]
["München","Doppelzimmer","Ohne","Hauptsaison","nein","telefonisch"]
["München","Doppelzimmer","Ohne","Hauptsaison","nein","sonstige"]
["München","Doppelzimmer","Ohne","Nebensaison","ja","online"]
["München","Doppelzimmer","Ohne","Nebensaison","ja","telefonisch"]
["München","Doppelzimmer","Ohne","Nebensaison","ja","sonstige"]
["München","Doppelzimmer","Ohne","Nebensaison","nein","online"]
["München","Doppelzimmer","Ohne","Nebensaison","nein","telefonisch"]
["München","Doppelzimmer","Ohne","Nebensaison","nein","sonstige"]
["München","Doppelzimmer","Frühstück","Hauptsaison","ja","online"]
["München","Doppelzimmer","Frühstück","Hauptsaison","ja","telefonisch"]
["München",{"$f":"GetValue(ROW()-1,COLUMN())","v":"Doppelzimmer"},"Frühstück","Hauptsaison","ja","sonstige"]
["München","Doppelzimmer","Frühstück","Hauptsaison","nein","online"]
["München","Doppelzimmer","Frühstück","Hauptsaison","nein","telefonisch"]
["München","Doppelzimmer","Frühstück","Hauptsaison","nein","sonstige"]
["München","Doppelzimmer","Frühstück","Nebensaison","ja","online"]
["München","Doppelzimmer","Frühstück","Nebensaison","ja","telefonisch"]
["München","Doppelzimmer","Frühstück","Nebensaison","ja","sonstige"]
["München","Doppelzimmer","Frühstück","Nebensaison","nein","online"]
["München","Doppelzimmer","Frühstück","Nebensaison","nein","telefonisch"]
["München","Doppelzimmer","Frühstück","Nebensaison","nein","sonstige"]
["München","Doppelzimmer","Halbpension","Hauptsaison","ja","online"]
["München","Doppelzimmer","Halbpension","Hauptsaison","ja","telefonisch"]
["München","Doppelzimmer","Halbpension","Hauptsaison","ja","sonstige"]
["München","Doppelzimmer","Halbpension","Hauptsaison","nein","online"]
["München","Doppelzimmer","Halbpension","Hauptsaison","nein","telefonisch"]
[{"$f":"GetValue(ROW()-1,COLUMN())","v":"München"},"Doppelzimmer","Halbpension","Hauptsaison","nein","sonstige"]
["München","Doppelzimmer","Halbpension","Nebensaison","ja","online"]
["München","Doppelzimmer","Halbpension","Nebensaison","ja","telefonisch"]
["München","Doppelzimmer","Halbpension","Nebensaison","ja","sonstige"]
["München","Doppelzimmer","Halbpension","Nebensaison","nein","online"]
["München","Doppelzimmer","Halbpension","Nebensaison","nein","telefonisch"]
["München","Doppelzimmer","Halbpension","Nebensaison","nein","sonstige"]
["München","Doppelzimmer","Vollpension","Hauptsaison","ja","online"]
["München","Doppelzimmer","Vollpension","Hauptsaison","ja","telefonisch"]
["München","Doppelzimmer","Vollpension","Hauptsaison","ja","sonstige"]
["München","Doppelzimmer","Vollpension","Hauptsaison","nein","online"]
["München","Doppelzimmer","Vollpension","Hauptsaison","nein","telefonisch"]
["München","Doppelzimmer","Vollpension","Hauptsaison","nein","sonstige"]
["München","Doppelzimmer","Vollpension","Nebensaison","ja","online"]
["München","Doppelzimmer","Vollpension","Nebensaison","ja","telefonisch"]
["München","Doppelzimmer","Vollpension","Nebensaison","ja","sonstige"]
["München","Doppelzimmer","Vollpension","Nebensaison","nein","online"]
["München","Doppelzimmer","Vollpension","Nebensaison","nein",{"$f":"GetValue(ROW()-1,COLUMN())","v":"telefonisch"}]
["München","Doppelzimmer","Vollpension","Nebensaison","nein","sonstige"]
["München","Doppelzimmer","All-Inclusive","Hauptsaison","ja","online"]
["München","Doppelzimmer","All-Inclusive","Hauptsaison","ja","telefonisch"]
["München","Doppelzimmer","All-Inclusive","Hauptsaison","ja","sonstige"]
["München","Doppelzimmer","All-Inclusive","Hauptsaison","nein","online"]
["München","Doppelzimmer","All-Inclusive","Hauptsaison","nein","telefonisch"]
["München","Doppelzimmer","All-Inclusive","Hauptsaison","nein","sonstige"]
["München","Doppelzimmer","All-Inclusive","Nebensaison","ja","online"]
["München","Doppelzimmer","All-Inclusive","Nebensaison","ja","telefonisch"]
["München","Doppelzimmer","All-Inclusive","Nebensaison","ja","sonstige"]
["München","Doppelzimmer","All-Inclusive","Nebensaison","nein","online"]
["München","Doppelzimmer","All-Inclusive","Nebensaison","nein","telefonisch"]
["München","Doppelzimmer","All-Inclusive","Nebensaison","nein","sonstige"]
["München","Suite","Ohne","Hauptsaison","ja","online"]
["München","Suite","Ohne","Hauptsaison","ja","telefonisch"]
["München",{"$f":"GetValue(ROW()-1,COLUMN())","v":"Suite"},"Ohne","Hauptsaison","ja","sonstige"]
["München","Suite","Ohne","Hauptsaison","nein","online"]
["München","Suite","Ohne","Hauptsaison","nein","telefonisch"]
["München","Suite","Ohne","Hauptsaison","nein","sonstige"]
["München","Suite","Ohne","Nebensaison","ja","online"]
["München","Suite","Ohne","Nebensaison","ja","telefonisch"]
["München","Suite","Ohne","Nebensaison","ja","sonstige"]
["München","Suite","Ohne","Nebensaison","nein","online"]
["München","Suite","Ohne","Nebensaison","nein","telefonisch"]
["München","Suite","Ohne","Nebensaison","nein","sonstige"]
["München","Suite","Frühstück","Hauptsaison","ja","online"]
["München","Suite","Frühstück","Hauptsaison","ja","telefonisch"]
["München","Suite","Frühstück","Hauptsaison","ja","sonstige"]
["München","Suite","Frühstück","Hauptsaison","nein","online"]
["München","Suite","Frühstück","Hauptsaison","nein","telefonisch"]
["München","Suite","Frühstück","Hauptsaison","nein","sonstige"]
["München",{"$f":"GetValue(ROW()-1,COLUMN())","v":"Suite"},"Frühstück","Nebensaison","ja","online"]
["München","Suite","Frühstück","Nebensaison","ja","telefonisch"]
["München","Suite","Frühstück","Nebensaison","ja","sonstige"]
["München","Suite","Frühstück","Nebensaison","nein","online"]
["München","Suite","Frühstück","Nebensaison","nein","telefonisch"]
["München","Suite","Frühstück","Nebensaison","nein","sonstige"]
["München","Suite","Halbpension","Hauptsaison","ja","online"]
["München","Suite","Halbpension","Hauptsaison","ja","telefonisch"]
["München","Suite","Halbpension","Hauptsaison","ja","sonstige"]
["München","Suite","Halbpension","Hauptsaison","nein","online"]
["München","Suite","Halbpension","Hauptsaison","nein","telefonisch"]
["München","Suite","Halbpension","Hauptsaison","nein","sonstige"]
["München","Suite","Halbpension","Nebensaison","ja","online"]
["München","Suite","Halbpension","Nebensaison","ja","telefonisch"]
["München","Suite","Halbpension","Nebensaison","ja","sonstige"]
[{"$f":"GetValue(ROW()-1,COLUMN())","v":"München"},"Suite","Halbpension","Nebensaison","nein","online"]
["München","Suite","Halbpension","Nebensaison","nein","telefonisch"]
["München","Suite","Halbpension","Nebensaison","nein","sonstige"]
["München","Suite","Vollpension","Hauptsaison","ja","online"]
["München","Suite","Vollpension","Hauptsaison","ja","telefonisch"]
["München","Suite","Vollpension","Hauptsaison","ja","sonstige"]
["München","Suite","Vollpension","Hauptsaison","nein","online"]
["München","Suite","Vollpension","Hauptsaison","nein","telefonisch"]
["München","Suite","Vollpension","Hauptsaison","nein","sonstige"]
["München","Suite","Vollpension","Nebensaison","ja","online"]
["München","Suite","Vollpension","Nebensaison","ja","telefonisch"]
["München","Suite","Vollpension","Nebensaison","ja","sonstige"]
["München","Suite","Vollpension","Nebensaison","nein","online"]
["München","Suite","Vollpension","Nebensaison","nein","telefonisch"]
["München","Suite","Vollpension","Nebensaison","nein","sonstige"]
["München","Suite","All-Inclusive","Hauptsaison","ja","online"]
["München","Suite","All-Inclusive","Hauptsaison","ja","telefonisch"]
["München","Suite","All-Inclusive","Hauptsaison","ja",{"$f":"GetValue(ROW()-1,COLUMN())","v":"sonstige"}]
["München","Suite","All-Inclusive","Hauptsaison","nein","online"]
["München","Suite","All-Inclusive","Hauptsaison","nein","telefonisch"]
["München","Suite","All-Inclusive","Hauptsaison","nein","sonstige"]
["München","Suite","All-Inclusive","Nebensaison","ja","online"]
["München","Suite","All-Inclusive","Nebensaison","ja","telefonisch"]
["München","Suite","All-Inclusive","Nebensaison","ja","sonstige"]
["München","Suite","All-Inclusive","Nebensaison","nein","online"]
["München","Suite","All-Inclusive","Nebensaison","nein","telefonisch"]
["München","Suite","All-Inclusive","Nebensaison","nein","sonstige"]